[Event "November 21 Early 2023"]
[Site "https://www.chess.com"]
[Date "2023.11.21"]
[Round "2"]
[White "Concio, Michael Jr."]
[Black "Deng, Henry"]
[Result "1-0"]
[Board "70"]
[TimeControl "180+1"]
[WhiteFideId "5217873"]
[BlackFideId "30965454"]
[WhiteElo "2300"]
[BlackElo "2536"]
[WhiteTeam "PHI"]
[BlackTeam "USA"]
[WhiteClock "0:00:05"]
[BlackClock "0:00:02"]

1. e4 {[%clk 0:03:00]}  c5 {[%clk 0:02:59]} 2. Nc3 {[%clk 0:03:00]}  e6 {[%clk 0:02:57]} 3. g3 {[%clk 0:02:55]}  d5 {[%clk 0:02:56]} 4. Bg2 {[%clk 0:02:56]}  Nf6 {[%clk 0:02:53]} 5. d3 {[%clk 0:02:56]}  Nc6 {[%clk 0:02:49]} 6. Bg5 {[%clk 0:02:54]}  Be7 {[%clk 0:02:44]} 7. Qd2 {[%clk 0:02:38]}  dxe4 {[%clk 0:02:26]} 8. dxe4 {[%clk 0:02:33]}  Qxd2+ {[%clk 0:02:26]} 9. Bxd2 {[%clk 0:02:34]}  O-O {[%clk 0:02:13]} 10. O-O-O {[%clk 0:02:33]}  Rd8 {[%clk 0:02:02]} 11. Nf3 {[%clk 0:02:13]}  b6 {[%clk 0:01:56]} 12. Bf4 {[%clk 0:02:00]}  Bb7 {[%clk 0:01:52]} 13. Bc7 {[%clk 0:02:01]}  Rdc8 {[%clk 0:01:50]} 14. Bd6 {[%clk 0:01:58]}  Kf8 {[%clk 0:01:41]} 15. e5 {[%clk 0:01:44]}  Ng4 {[%clk 0:01:40]} 16. Rhf1 {[%clk 0:01:11]}  Bxd6 {[%clk 0:01:12]} 17. exd6 {[%clk 0:01:10]}  Rd8 {[%clk 0:01:04]} 18. h3 {[%clk 0:01:08]}  Nf6 {[%clk 0:01:01]} 19. Ne5 {[%clk 0:01:02]}  Nxe5 {[%clk 0:00:59]} 20. Bxb7 {[%clk 0:01:03]}  Rab8 {[%clk 0:01:00]} 21. Ba6 {[%clk 0:01:03]}  Nc6 {[%clk 0:00:56]} 22. a3 {[%clk 0:00:54]}  Nd4 {[%clk 0:00:55]} 23. Nb5 {[%clk 0:00:43]}  Nxb5 {[%clk 0:00:52]} 24. Bxb5 {[%clk 0:00:44]}  Ne4 {[%clk 0:00:49]} 25. d7 {[%clk 0:00:43]}  Ke7 {[%clk 0:00:50]} 26. Bc6 {[%clk 0:00:38]}  Nf6 {[%clk 0:00:50]} 27. f4 {[%clk 0:00:38]}  Nxd7 {[%clk 0:00:50]} 28. f5 {[%clk 0:00:35]}  Ne5 {[%clk 0:00:47]} 29. Be4 {[%clk 0:00:36]}  Rxd1+ {[%clk 0:00:47]} 30. Rxd1 {[%clk 0:00:37]}  exf5 {[%clk 0:00:47]} 31. Bxf5 {[%clk 0:00:37]}  g6 {[%clk 0:00:46]} 32. Be4 {[%clk 0:00:37]}  Rd8 {[%clk 0:00:46]} 33. Re1 {[%clk 0:00:37]}  Kf6 {[%clk 0:00:40]} 34. Bg2 {[%clk 0:00:34]}  Nc4 {[%clk 0:00:33]} 35. Bf1 {[%clk 0:00:31]}  Nd6 {[%clk 0:00:32]} 36. Bg2 {[%clk 0:00:29]}  Nf5 {[%clk 0:00:32]} 37. g4 {[%clk 0:00:27]}  Nd4 {[%clk 0:00:30]} 38. h4 {[%clk 0:00:18]}  h6 {[%clk 0:00:29]} 39. Rf1+ {[%clk 0:00:12]}  Ke7 {[%clk 0:00:28]} 40. Re1+ {[%clk 0:00:11]}  Ne6 {[%clk 0:00:29]} 41. c3 {[%clk 0:00:07]}  Rd3 {[%clk 0:00:28]} 42. Bf1 {[%clk 0:00:02]}  Rg3 {[%clk 0:00:26]} 43. Be2 {[%clk 0:00:03]}  Rh3 {[%clk 0:00:24]} 44. h5 {[%clk 0:00:03]}  gxh5 {[%clk 0:00:24]} 45. gxh5 {[%clk 0:00:04]}  Rh2 {[%clk 0:00:24]} 46. Bd1 {[%clk 0:00:04]}  Kd6 {[%clk 0:00:24]} 47. Rf1 {[%clk 0:00:04]}  Ke7 {[%clk 0:00:23]} 48. Re1 {[%clk 0:00:05]}  Kf6 {[%clk 0:00:19]} 49. Rf1+ {[%clk 0:00:05]}  Kg7 {[%clk 0:00:19]} 50. b4 {[%clk 0:00:04]}  cxb4 {[%clk 0:00:19]} 51. axb4 {[%clk 0:00:05]}  a5 {[%clk 0:00:17]} 52. bxa5 {[%clk 0:00:04]}  bxa5 {[%clk 0:00:18]} 53. Rg1+ {[%clk 0:00:04]}  Kf6 {[%clk 0:00:18]} 54. Rf1+ {[%clk 0:00:04]}  Ke7 {[%clk 0:00:18]} 55. Rf5 {[%clk 0:00:04]}  a4 {[%clk 0:00:15]} 56. Bxa4 {[%clk 0:00:04]}  Rh1+ {[%clk 0:00:14]} 57. Kb2 {[%clk 0:00:04]}  Rh2+ {[%clk 0:00:15]} 58. Ka3 {[%clk 0:00:04]}  f6 {[%clk 0:00:16]} 59. Bd1 {[%clk 0:00:03]}  Ng5 {[%clk 0:00:15]} 60. Rf1 {[%clk 0:00:02]}  Ne4 {[%clk 0:00:13]} 61. Re1 {[%clk 0:00:02]}  f5 {[%clk 0:00:14]} 62. Kb3 {[%clk 0:00:02]}  Kd6 {[%clk 0:00:14]} 63. Bc2 {[%clk 0:00:01]}  Rh3 {[%clk 0:00:13]} 64. Bxe4 {[%clk 0:00:01]}  fxe4 {[%clk 0:00:14]} 65. Rxe4 {[%clk 0:00:02]}  Rxh5 {[%clk 0:00:15]} 66. Kb4 {[%clk 0:00:03]}  Kc7 {[%clk 0:00:14]} 67. c4 {[%clk 0:00:03]}  Rg5 {[%clk 0:00:15]} 68. Re6 {[%clk 0:00:04]}  h5 {[%clk 0:00:15]} 69. c5 {[%clk 0:00:04]}  h4 {[%clk 0:00:15]} 70. Rh6 {[%clk 0:00:04]}  h3 {[%clk 0:00:15]} 71. Kb5 {[%clk 0:00:03]}  Rg1 {[%clk 0:00:15]} 72. Rh7+ {[%clk 0:00:04]}  Kc8 {[%clk 0:00:15]} 73. Kb6 {[%clk 0:00:04]}  h2 {[%clk 0:00:11]} 74. Rh8+ {[%clk 0:00:03]}  Kd7 {[%clk 0:00:11]} 75. c6+ {[%clk 0:00:04]}  Kd6 {[%clk 0:00:11]} 76. Rh6+ {[%clk 0:00:04]}  Kd5 {[%clk 0:00:10]} 77. Rxh2 {[%clk 0:00:05]}  Rb1+ {[%clk 0:00:09]} 78. Kc7 {[%clk 0:00:05]}  Rc1 {[%clk 0:00:09]} 79. Rh5+ {[%clk 0:00:05]}  Ke6 {[%clk 0:00:09]} 80. Rh2 {[%clk 0:00:03]}  Kd5 {[%clk 0:00:09]} 81. Rd2+ {[%clk 0:00:04]}  Ke6 {[%clk 0:00:09]} 82. Kb7 {[%clk 0:00:03]}  Rb1+ {[%clk 0:00:08]} 83. Kc8 {[%clk 0:00:04]}  Rc1 {[%clk 0:00:08]} 84. c7 {[%clk 0:00:05]}  Ke7 {[%clk 0:00:08]} 85. Rd4 {[%clk 0:00:03]}  Ke6 {[%clk 0:00:07]} 86. Kb7 {[%clk 0:00:03]}  Rb1+ {[%clk 0:00:06]} 87. Kc8 {[%clk 0:00:03]}  Ke7 {[%clk 0:00:06]} 88. Rh4 {[%clk 0:00:02]}  Rb2 {[%clk 0:00:05]} 89. Rh7+ {[%clk 0:00:02]}  Ke8 {[%clk 0:00:05]} 90. Rh1 {[%clk 0:00:02]}  Ke7 {[%clk 0:00:06]} 91. Re1+ {[%clk 0:00:03]}  Kf7 {[%clk 0:00:06]} 92. Kd8 {[%clk 0:00:04]}  Rd2+ {[%clk 0:00:05]} 93. Kc8 {[%clk 0:00:04]}  Rb2 {[%clk 0:00:04]} 94. Re5 {[%clk 0:00:04]}  Rb3 {[%clk 0:00:04]} 95. Kd7 {[%clk 0:00:04]}  Rd3+ {[%clk 0:00:04]} 96. Kc6 {[%clk 0:00:04]}  Rc3+ {[%clk 0:00:02]} 97. Rc5 {[%clk 0:00:05]} 1-0

[Event "November 21 Early 2023"]
[Site "https://www.chess.com"]
[Date "2023.11.21"]
[Round "2"]
[White "Zomorrodian, Eilia"]
[Black "Pendos666"]
[Result "0-1"]
[Board "73"]
[TimeControl "180+1"]
[WhiteFideId "12551805"]
[WhiteElo "2109"]
[BlackElo "2805"]
[WhiteTeam "CAN"]
[WhiteClock "0:00:04"]
[BlackClock "0:00:19"]

1. e4 {[%clk 0:03:00]}  c5 {[%clk 0:02:58]} 2. Nf3 {[%clk 0:03:00]}  g6 {[%clk 0:02:57]} 3. c3 {[%clk 0:03:01]}  d5 {[%clk 0:02:56]} 4. exd5 {[%clk 0:02:53]}  Qxd5 {[%clk 0:02:55]} 5. d4 {[%clk 0:02:53]}  Bg7 {[%clk 0:02:56]} 6. Be3 {[%clk 0:02:53]}  cxd4 {[%clk 0:02:53]} 7. cxd4 {[%clk 0:02:53]}  Nf6 {[%clk 0:02:52]} 8. Nc3 {[%clk 0:02:54]}  Qd8 {[%clk 0:02:51]} 9. Bc4 {[%clk 0:02:51]}  O-O {[%clk 0:02:51]} 10. O-O {[%clk 0:02:51]}  Bg4 {[%clk 0:02:50]} 11. h3 {[%clk 0:02:50]}  Bxf3 {[%clk 0:02:50]} 12. Qxf3 {[%clk 0:02:51]}  Nc6 {[%clk 0:02:50]} 13. Rfd1 {[%clk 0:02:36]}  Rc8 {[%clk 0:02:49]} 14. Bf1 {[%clk 0:02:22]}  Ne8 {[%clk 0:02:43]} 15. d5 {[%clk 0:02:17]}  Ne5 {[%clk 0:02:36]} 16. Qf4 {[%clk 0:02:07]}  a6 {[%clk 0:02:29]} 17. Ne4 {[%clk 0:01:38]}  Nd6 {[%clk 0:02:19]} 18. Nc5 {[%clk 0:01:33]}  Nd7 {[%clk 0:02:04]} 19. Nd3 {[%clk 0:01:14]}  Nf5 {[%clk 0:01:45]} 20. Rac1 {[%clk 0:01:10]}  Bh6 {[%clk 0:01:35]} 21. Qf3 {[%clk 0:01:05]}  Nxe3 {[%clk 0:01:34]} 22. fxe3 {[%clk 0:01:05]}  Qb6 {[%clk 0:01:34]} 23. Nf4 {[%clk 0:00:56]}  Rxc1 {[%clk 0:01:18]} 24. Rxc1 {[%clk 0:00:57]}  Qxb2 {[%clk 0:01:18]} 25. Rc7 {[%clk 0:00:57]}  Rd8 {[%clk 0:01:06]} 26. d6 {[%clk 0:00:56]}  e6 {[%clk 0:01:03]} 27. Rxb7 {[%clk 0:00:54]}  Qd2 {[%clk 0:00:57]} 28. Bxa6 {[%clk 0:00:48]}  Qxd6 {[%clk 0:00:53]} 29. Bf1 {[%clk 0:00:30]}  Ne5 {[%clk 0:00:50]} 30. Qe4 {[%clk 0:00:29]}  Qc5 {[%clk 0:00:48]} 31. a4 {[%clk 0:00:27]}  Rd1 {[%clk 0:00:47]} 32. Rb8+ {[%clk 0:00:23]}  Bf8 {[%clk 0:00:44]} 33. Rb5 {[%clk 0:00:18]}  Qc1 {[%clk 0:00:38]} 34. Qxe5 {[%clk 0:00:18]}  Rxf1+ {[%clk 0:00:37]} 35. Kh2 {[%clk 0:00:18]}  Qe1 {[%clk 0:00:36]} 36. g4 {[%clk 0:00:04]}  Rg1 {[%clk 0:00:19]} 37. Ng2 {[%clk 0:00:04]}  Rh1# {[%clk 0:00:19]} 0-1

[Event "November 21 Early 2023"]
[Site "https://www.chess.com"]
[Date "2023.11.21"]
[Round "2"]
[White "Raja Rithvik R"]
[Black "Do Nascimento,Christian Almeida"]
[Result "1-0"]
[Board "74"]
[TimeControl "180+1"]
[WhiteFideId "35007394"]
[BlackFideId "2143801"]
[WhiteElo "2395"]
[BlackElo "2118"]
[WhiteTeam "IND"]
[BlackTeam "BRA"]
[WhiteClock "0:01:28"]
[BlackClock "0:00:21"]

1. Nf3 {[%clk 0:03:00]}  d5 {[%clk 0:02:59]} 2. c4 {[%clk 0:03:00]}  Nf6 {[%clk 0:02:56]} 3. cxd5 {[%clk 0:03:00]}  Nxd5 {[%clk 0:02:57]} 4. e4 {[%clk 0:03:01]}  Nb6 {[%clk 0:02:57]} 5. d4 {[%clk 0:02:59]}  g6 {[%clk 0:02:57]} 6. Be2 {[%clk 0:02:58]}  Bg7 {[%clk 0:02:57]} 7. O-O {[%clk 0:02:58]}  O-O {[%clk 0:02:58]} 8. h3 {[%clk 0:02:57]}  Nc6 {[%clk 0:02:58]} 9. Be3 {[%clk 0:02:54]}  a5 {[%clk 0:02:52]} 10. Nc3 {[%clk 0:02:50]}  a4 {[%clk 0:02:51]} 11. d5 {[%clk 0:02:50]}  Ne5 {[%clk 0:02:49]} 12. Nxe5 {[%clk 0:02:44]}  Bxe5 {[%clk 0:02:50]} 13. Bd4 {[%clk 0:02:28]}  Bxd4 {[%clk 0:02:46]} 14. Qxd4 {[%clk 0:02:29]}  a3 {[%clk 0:02:46]} 15. b3 {[%clk 0:02:23]}  e6 {[%clk 0:02:30]} 16. Rfd1 {[%clk 0:02:15]}  exd5 {[%clk 0:02:30]} 17. exd5 {[%clk 0:02:16]}  Re8 {[%clk 0:02:26]} 18. Ne4 {[%clk 0:01:57]}  Rxe4 {[%clk 0:02:15]} 19. Qxe4 {[%clk 0:01:56]}  Bf5 {[%clk 0:02:15]} 20. Qb4 {[%clk 0:01:50]}  Qf6 {[%clk 0:02:07]} 21. d6 {[%clk 0:01:48]}  Bc2 {[%clk 0:01:55]} 22. Rdc1 {[%clk 0:01:46]}  Re8 {[%clk 0:00:54]} 23. Qd2 {[%clk 0:01:40]}  Bf5 {[%clk 0:00:48]} 24. dxc7 {[%clk 0:01:41]}  Nc8 {[%clk 0:00:44]} 25. Bg4 {[%clk 0:01:35]}  Qb2 {[%clk 0:00:43]} 26. Rd1 {[%clk 0:01:31]}  Bc2 {[%clk 0:00:40]} 27. Re1 {[%clk 0:01:29]}  Be4 {[%clk 0:00:21]} 28. Qd8 {[%clk 0:01:28]} 1-0

[Event "November 21 Early 2023"]
[Site "https://www.chess.com"]
[Date "2023.11.21"]
[Round "2"]
[White "Llorente Zaro, Alfonso"]
[Black "Jimenez Almeida, Luis David"]
[Result "0-1"]
[Board "76"]
[TimeControl "180+1"]
[WhiteFideId "2254131"]
[BlackFideId "22242244"]
[WhiteElo "2485"]
[BlackElo "2216"]
[WhiteTeam "ESP"]
[BlackTeam "ESP"]
[WhiteClock "0:00:00"]
[BlackClock "0:00:07"]

1. e4 {[%clk 0:02:59]}  c5 {[%clk 0:02:57]} 2. Nf3 {[%clk 0:02:58]}  e6 {[%clk 0:02:57]} 3. d3 {[%clk 0:02:55]}  Nc6 {[%clk 0:02:55]} 4. g3 {[%clk 0:02:55]}  g6 {[%clk 0:02:55]} 5. Bg2 {[%clk 0:02:53]}  Bg7 {[%clk 0:02:55]} 6. O-O {[%clk 0:02:52]}  Nge7 {[%clk 0:02:56]} 7. Re1 {[%clk 0:02:51]}  d6 {[%clk 0:02:56]} 8. c3 {[%clk 0:02:51]}  O-O {[%clk 0:02:54]} 9. d4 {[%clk 0:02:51]}  cxd4 {[%clk 0:02:48]} 10. cxd4 {[%clk 0:02:52]}  d5 {[%clk 0:02:48]} 11. e5 {[%clk 0:02:51]}  h6 {[%clk 0:02:46]} 12. Nc3 {[%clk 0:02:50]}  b6 {[%clk 0:02:45]} 13. b3 {[%clk 0:02:47]}  Ba6 {[%clk 0:02:44]} 14. Ba3 {[%clk 0:02:47]}  Qd7 {[%clk 0:02:44]} 15. Rc1 {[%clk 0:02:47]}  Rfc8 {[%clk 0:02:44]} 16. Qd2 {[%clk 0:02:47]}  Nf5 {[%clk 0:02:40]} 17. g4 {[%clk 0:02:44]}  Nfe7 {[%clk 0:02:39]} 18. h3 {[%clk 0:02:45]}  Kh7 {[%clk 0:02:38]} 19. Rc2 {[%clk 0:02:42]}  Rc7 {[%clk 0:02:35]} 20. Rec1 {[%clk 0:02:42]}  Rac8 {[%clk 0:02:35]} 21. Ne2 {[%clk 0:02:21]}  Nb8 {[%clk 0:02:14]} 22. Nf4 {[%clk 0:02:19]}  Rxc2 {[%clk 0:02:11]} 23. Rxc2 {[%clk 0:02:20]}  Rxc2 {[%clk 0:02:12]} 24. Qxc2 {[%clk 0:02:21]}  Qc6 {[%clk 0:02:10]} 25. Qd2 {[%clk 0:02:12]}  Qd7 {[%clk 0:01:58]} 26. h4 {[%clk 0:02:11]}  Nbc6 {[%clk 0:01:55]} 27. h5 {[%clk 0:01:46]}  g5 {[%clk 0:01:53]} 28. Nd3 {[%clk 0:01:43]}  Kg8 {[%clk 0:01:49]} 29. Bf1 {[%clk 0:01:43]}  Bf8 {[%clk 0:01:47]} 30. Bb2 {[%clk 0:01:03]}  Bb5 {[%clk 0:01:32]} 31. Nh2 {[%clk 0:01:02]}  a5 {[%clk 0:01:24]} 32. f4 {[%clk 0:00:59]}  gxf4 {[%clk 0:01:23]} 33. Qxf4 {[%clk 0:00:59]}  Nb4 {[%clk 0:01:13]} 34. Nxb4 {[%clk 0:00:53]}  axb4 {[%clk 0:01:14]} 35. Bh3 {[%clk 0:00:51]}  Qa7 {[%clk 0:01:00]} 36. g5 {[%clk 0:00:41]}  Qxa2 {[%clk 0:00:59]} 37. Bc1 {[%clk 0:00:42]}  Qxb3 {[%clk 0:00:55]} 38. Nf3 {[%clk 0:00:34]}  Qd1+ {[%clk 0:00:51]} 39. Kh2 {[%clk 0:00:34]}  Qe2+ {[%clk 0:00:50]} 40. Kg3 {[%clk 0:00:33]}  Qe4 {[%clk 0:00:45]} 41. Qxe4 {[%clk 0:00:18]}  dxe4 {[%clk 0:00:46]} 42. Nd2 {[%clk 0:00:18]}  Nf5+ {[%clk 0:00:42]} 43. Kf4 {[%clk 0:00:13]}  hxg5+ {[%clk 0:00:39]} 44. Kxe4 {[%clk 0:00:14]}  Bc6+ {[%clk 0:00:36]} 45. Kd3 {[%clk 0:00:13]}  Ng3 {[%clk 0:00:33]} 46. Nc4 {[%clk 0:00:08]}  b5 {[%clk 0:00:31]} 47. Nd6 {[%clk 0:00:08]}  Nxh5 {[%clk 0:00:28]} 48. Bxg5 {[%clk 0:00:08]}  f6 {[%clk 0:00:27]} 49. Bxe6+ {[%clk 0:00:06]}  Kg7 {[%clk 0:00:25]} 50. Be3 {[%clk 0:00:05]}  fxe5 {[%clk 0:00:24]} 51. dxe5 {[%clk 0:00:06]}  Ng3 {[%clk 0:00:18]} 52. Bf4 {[%clk 0:00:05]}  Nh5 {[%clk 0:00:14]} 53. Be3 {[%clk 0:00:04]}  Nf6 {[%clk 0:00:13]} 54. Nf5+ {[%clk 0:00:03]}  Kg6 {[%clk 0:00:13]} 55. Nh4+ {[%clk 0:00:02]}  Kh5 {[%clk 0:00:11]} 56. Nf5 {[%clk 0:00:02]}  Ne4 {[%clk 0:00:10]} 57. Bd4 {[%clk 0:00:02]}  Kg5 {[%clk 0:00:07]} 58. Ne3 {[%clk 0:00:02]}  Nc5+ {[%clk 0:00:07]} 59. Kc2 {[%clk 0:00:02]}  Be4+ {[%clk 0:00:07]} 60. Kb2 {[%clk 0:00:02]}  Nxe6 {[%clk 0:00:08]} 61. Bb6 {[%clk 0:00:01]}  Kf4 {[%clk 0:00:08]} 62. Nc2 {[%clk 0:00:02]}  Bc5 {[%clk 0:00:08]} 63. Bxc5 {[%clk 0:00:01]}  Nxc5 {[%clk 0:00:09]} 64. Nxb4 {[%clk 0:00:02]}  Kxe5 {[%clk 0:00:09]} 65. Kc3 {[%clk 0:00:02]}  Bd5 {[%clk 0:00:08]} 66. Kb2 {[%clk 0:00:01]}  Kd4 {[%clk 0:00:08]} 67. Ka3 {[%clk 0:00:00]}  Kc4 {[%clk 0:00:07]} 0-1

[Event "November 21 Early 2023"]
[Site "https://www.chess.com"]
[Date "2023.11.21"]
[Round "2"]
[White "Lobanov, Sergei"]
[Black "Redzisz, Michal"]
[Result "1-0"]
[Board "77"]
[TimeControl "180+1"]
[WhiteFideId "24183750"]
[BlackFideId "21816107"]
[WhiteElo "2483"]
[BlackElo "2068"]
[WhiteTeam "FID"]
[BlackTeam "POL"]
[WhiteClock "0:01:54"]
[BlackClock "0:01:41"]

1. d4 {[%clk 0:03:00]}  Nf6 {[%clk 0:02:54]} 2. c4 {[%clk 0:03:01]}  g6 {[%clk 0:02:52]} 3. Nc3 {[%clk 0:03:01]}  d5 {[%clk 0:02:53]} 4. cxd5 {[%clk 0:02:59]}  Nxd5 {[%clk 0:02:54]} 5. e4 {[%clk 0:02:59]}  Nxc3 {[%clk 0:02:54]} 6. bxc3 {[%clk 0:03:00]}  Bg7 {[%clk 0:02:55]} 7. Bc4 {[%clk 0:02:59]}  c5 {[%clk 0:02:54]} 8. Ne2 {[%clk 0:03:00]}  Nc6 {[%clk 0:02:52]} 9. Be3 {[%clk 0:02:59]}  O-O {[%clk 0:02:52]} 10. O-O {[%clk 0:02:59]}  b6 {[%clk 0:02:52]} 11. h4 {[%clk 0:02:53]}  e6 {[%clk 0:02:43]} 12. h5 {[%clk 0:02:52]}  Qh4 {[%clk 0:02:44]} 13. f3 {[%clk 0:02:42]}  Qxh5 {[%clk 0:02:22]} 14. Qe1 {[%clk 0:02:20]}  Rd8 {[%clk 0:02:00]} 15. Nf4 {[%clk 0:02:11]}  Qg5 {[%clk 0:01:50]} 16. Nxe6 {[%clk 0:02:11]}  Qxe3+ {[%clk 0:01:43]} 17. Qxe3 {[%clk 0:02:10]}  cxd4 {[%clk 0:01:41]} 18. Nxd8 {[%clk 0:01:54]} 1-0

[Event "November 21 Early 2023"]
[Site "https://www.chess.com"]
[Date "2023.11.21"]
[Round "2"]
[White "Ynojosa Aponte, Felix Jose"]
[Black "Rychkov, Oleg"]
[Result "0-1"]
[Board "78"]
[TimeControl "180+1"]
[WhiteFideId "3900258"]
[BlackFideId "4122852"]
[WhiteElo "2433"]
[BlackElo "2398"]
[WhiteTeam "VEN"]
[BlackTeam "RUS"]
[WhiteClock "0:00:05"]
[BlackClock "0:00:16"]

1. e4 {[%clk 0:03:00]}  e5 {[%clk 0:02:59]} 2. Nf3 {[%clk 0:03:00]}  Nc6 {[%clk 0:02:59]} 3. Bc4 {[%clk 0:03:01]}  Nf6 {[%clk 0:02:58]} 4. d3 {[%clk 0:02:59]}  h6 {[%clk 0:02:56]} 5. Nc3 {[%clk 0:02:59]}  d6 {[%clk 0:02:54]} 6. Nd5 {[%clk 0:02:58]}  Na5 {[%clk 0:02:46]} 7. h3 {[%clk 0:02:46]}  Nxc4 {[%clk 0:02:44]} 8. Nxf6+ {[%clk 0:02:43]}  Qxf6 {[%clk 0:02:43]} 9. dxc4 {[%clk 0:02:44]}  Qg6 {[%clk 0:02:42]} 10. O-O {[%clk 0:02:28]}  Bxh3 {[%clk 0:02:39]} 11. Ne1 {[%clk 0:02:13]}  Be6 {[%clk 0:02:35]} 12. Qd3 {[%clk 0:02:12]}  Be7 {[%clk 0:02:31]} 13. b3 {[%clk 0:02:10]}  f5 {[%clk 0:02:29]} 14. exf5 {[%clk 0:01:53]}  Bxf5 {[%clk 0:02:29]} 15. Qd1 {[%clk 0:01:47]}  c6 {[%clk 0:02:20]} 16. Be3 {[%clk 0:01:44]}  O-O {[%clk 0:02:19]} 17. f3 {[%clk 0:01:32]}  Rf7 {[%clk 0:02:17]} 18. Rf2 {[%clk 0:01:32]}  Bh4 {[%clk 0:02:16]} 19. Rd2 {[%clk 0:01:29]}  Bxe1 {[%clk 0:01:46]} 20. Qxe1 {[%clk 0:01:30]}  Bxc2 {[%clk 0:01:45]} 21. Rc1 {[%clk 0:01:21]}  Bf5 {[%clk 0:01:45]} 22. Rcd1 {[%clk 0:01:21]}  Rf6 {[%clk 0:01:45]} 23. Bf2 {[%clk 0:01:17]}  b6 {[%clk 0:01:42]} 24. b4 {[%clk 0:01:09]}  Raf8 {[%clk 0:01:40]} 25. c5 {[%clk 0:01:08]}  bxc5 {[%clk 0:01:39]} 26. bxc5 {[%clk 0:01:08]}  d5 {[%clk 0:01:33]} 27. Qxe5 {[%clk 0:01:07]}  Qf7 {[%clk 0:01:22]} 28. Re1 {[%clk 0:00:53]}  Re6 {[%clk 0:01:21]} 29. Qd4 {[%clk 0:00:48]}  Rg6 {[%clk 0:01:13]} 30. Bh4 {[%clk 0:00:29]}  Bh3 {[%clk 0:01:09]} 31. Qd3 {[%clk 0:00:13]}  Bf5 {[%clk 0:00:53]} 32. Qd4 {[%clk 0:00:13]}  Qb7 {[%clk 0:00:45]} 33. Re7 {[%clk 0:00:13]}  Qb1+ {[%clk 0:00:44]} 34. Kh2 {[%clk 0:00:13]}  Qf1 {[%clk 0:00:43]} 35. Rf2 {[%clk 0:00:10]}  Qa6 {[%clk 0:00:40]} 36. Rfe2 {[%clk 0:00:10]}  Be4 {[%clk 0:00:39]} 37. Rf2 {[%clk 0:00:09]}  Bf5 {[%clk 0:00:37]} 38. Rfe2 {[%clk 0:00:09]}  Qa3 {[%clk 0:00:34]} 39. Rc7 {[%clk 0:00:09]}  Qd3 {[%clk 0:00:21]} 40. Qxd3 {[%clk 0:00:09]}  Bxd3 {[%clk 0:00:21]} 41. Ree7 {[%clk 0:00:09]}  a6 {[%clk 0:00:21]} 42. Bf2 {[%clk 0:00:10]}  Rf5 {[%clk 0:00:16]} 43. Bg3 {[%clk 0:00:10]}  Rfg5 {[%clk 0:00:16]} 44. Bd6 {[%clk 0:00:05]}  Rxg2+ {[%clk 0:00:16]} 45. Kh1 {[%clk 0:00:06]}  Rg1+ {[%clk 0:00:15]} 46. Kh2 {[%clk 0:00:06]}  R6g2+ {[%clk 0:00:15]} 47. Kh3 {[%clk 0:00:06]}  Bf5+ {[%clk 0:00:16]} 48. Kh4 {[%clk 0:00:06]}  Rh1+ {[%clk 0:00:16]} 49. Bh2 {[%clk 0:00:05]}  Rhxh2# {[%clk 0:00:16]} 0-1

[Event "November 21 Early 2023"]
[Site "https://www.chess.com"]
[Date "2023.11.21"]
[Round "2"]
[White "Malyi, Viacheslav"]
[Black "Alexandre, Anne Shopie Elizabeth"]
[Result "0-1"]
[Board "80"]
[TimeControl "180+1"]
[WhiteFideId "14123983"]
[BlackFideId "11902418"]
[WhiteElo "2291"]
[BlackElo "2783"]
[WhiteTeam "UKR"]
[BlackTeam "HAI"]
[WhiteClock "0:02:41"]
[BlackClock "0:01:52"]

1. e4 {[%clk 0:03:00]}  c5 {[%clk 0:02:59]} 2. Nf3 {[%clk 0:03:00]}  Nc6 {[%clk 0:03:00]} 3. d4 {[%clk 0:02:59]}  cxd4 {[%clk 0:03:00]} 4. Nxd4 {[%clk 0:03:00]}  e6 {[%clk 0:03:01]} 5. Nc3 {[%clk 0:03:00]}  Qc7 {[%clk 0:03:01]} 6. Be2 {[%clk 0:03:00]}  Nf6 {[%clk 0:03:00]} 7. O-O {[%clk 0:02:59]}  Be7 {[%clk 0:02:56]} 8. Be3 {[%clk 0:02:58]}  O-O {[%clk 0:02:56]} 9. f4 {[%clk 0:02:58]}  d6 {[%clk 0:02:53]} 10. Qe1 {[%clk 0:02:59]}  a6 {[%clk 0:02:52]} 11. Qg3 {[%clk 0:02:58]}  Nxd4 {[%clk 0:02:49]} 12. Bxd4 {[%clk 0:02:57]}  b5 {[%clk 0:02:50]} 13. a3 {[%clk 0:02:54]}  Bb7 {[%clk 0:02:50]} 14. Bd3 {[%clk 0:02:54]}  Nh5 {[%clk 0:02:38]} 15. Qg4 {[%clk 0:02:47]}  Nf6 {[%clk 0:02:33]} 16. Qg3 {[%clk 0:02:46]}  Rac8 {[%clk 0:02:16]} 17. Rae1 {[%clk 0:02:45]}  Nh5 {[%clk 0:01:58]} 18. Qg4 {[%clk 0:02:45]}  g6 {[%clk 0:01:53]} 19. Qg3 {[%clk 0:02:41]}  Nxg3 {[%clk 0:01:52]} 0-1

[Event "November 21 Early 2023"]
[Site "https://www.chess.com"]
[Date "2023.11.21"]
[Round "2"]
[White "Shubenkova, Veronika"]
[Black "Fier, Alexandr"]
[Result "1-0"]
[Board "82"]
[TimeControl "180+1"]
[WhiteFideId "44124040"]
[BlackFideId "2107139"]
[WhiteElo "1967"]
[BlackElo "2578"]
[WhiteTeam "RUS"]
[BlackTeam "BRA"]
[WhiteClock "0:00:27"]
[BlackClock "0:01:27"]

1. e4 {[%clk 0:03:00]}  Nf6 {[%clk 0:02:57]} 2. e5 {[%clk 0:03:00]}  Nd5 {[%clk 0:02:57]} 3. c4 {[%clk 0:03:01]}  Nb6 {[%clk 0:02:57]} 4. d4 {[%clk 0:03:02]}  d6 {[%clk 0:02:57]} 5. exd6 {[%clk 0:03:02]}  cxd6 {[%clk 0:02:57]} 6. Nf3 {[%clk 0:03:03]}  g6 {[%clk 0:02:58]} 7. Nc3 {[%clk 0:03:03]}  Bg7 {[%clk 0:02:58]} 8. Be2 {[%clk 0:03:03]}  O-O {[%clk 0:02:59]} 9. h3 {[%clk 0:03:04]}  Nc6 {[%clk 0:02:59]} 10. O-O {[%clk 0:03:04]}  Bf5 {[%clk 0:02:59]} 11. a3 {[%clk 0:03:04]}  d5 {[%clk 0:02:59]} 12. c5 {[%clk 0:03:04]}  Nc4 {[%clk 0:02:56]} 13. Bxc4 {[%clk 0:02:58]}  dxc4 {[%clk 0:02:56]} 14. d5 {[%clk 0:02:58]}  Na5 {[%clk 0:02:56]} 15. Bg5 {[%clk 0:02:43]}  Nb3 {[%clk 0:02:55]} 16. d6 {[%clk 0:02:41]}  f6 {[%clk 0:02:52]} 17. dxe7 {[%clk 0:02:38]}  Qxe7 {[%clk 0:02:52]} 18. Bf4 {[%clk 0:02:33]}  Rfd8 {[%clk 0:02:43]} 19. Bd6 {[%clk 0:02:30]}  Qf7 {[%clk 0:02:43]} 20. Nd4 {[%clk 0:02:19]}  Bd3 {[%clk 0:02:23]} 21. Nxb3 {[%clk 0:02:12]}  Bxf1 {[%clk 0:02:22]} 22. Nc1 {[%clk 0:02:07]}  Bd3 {[%clk 0:02:19]} 23. Nxd3 {[%clk 0:02:07]}  cxd3 {[%clk 0:02:20]} 24. Qxd3 {[%clk 0:02:07]}  f5 {[%clk 0:02:20]} 25. Re1 {[%clk 0:02:00]}  Re8 {[%clk 0:02:20]} 26. Rd1 {[%clk 0:01:55]}  Rad8 {[%clk 0:02:20]} 27. Qb5 {[%clk 0:01:53]}  a6 {[%clk 0:02:18]} 28. Qb4 {[%clk 0:01:43]}  Qe6 {[%clk 0:02:08]} 29. Nd5 {[%clk 0:01:39]}  Qe2 {[%clk 0:02:05]} 30. Qb3 {[%clk 0:01:20]}  Kh8 {[%clk 0:02:02]} 31. Nc7 {[%clk 0:01:10]}  Re4 {[%clk 0:02:00]} 32. Rb1 {[%clk 0:01:04]}  Bd4 {[%clk 0:02:00]} 33. Rf1 {[%clk 0:00:46]}  Be5 {[%clk 0:01:45]} 34. Ne6 {[%clk 0:00:34]}  Re8 {[%clk 0:01:37]} 35. Qxb7 {[%clk 0:00:33]}  Rxe6 {[%clk 0:01:27]} 36. Qc8+ {[%clk 0:00:27]}  Kg7 {[%clk 0:01:27]} 37. Qf8# {[%clk 0:00:27]} 1-0